fUSD/lending_fUSD_20260612
["ID","MTS","AMOUNT","RATE_DAILY","PERIOD"]
[424866536,1781215846000,-154.96614695,0.00027359,7]
[424866528,1781215846000,-3359.84,0.00026667,3]
[424866548,1781215846000,-206.261421,0.00027397,2]
[424866542,1781215846000,-150.0,0.00027397,2]
[424866541,1781215846000,-150.0,0.00027397,2]
[424866539,1781215846000,-152.23223434,0.00027359,7]
[424866543,1781215846000,-150.0,0.00027397,2]
[424866545,1781215846000,-288.75019747,0.00027397,2]
[424866546,1781215846000,-1500.0,0.00027397,2]
[424866544,1781215846000,-150.0,0.00027397,2]
[424866547,1781215846000,-300.0,0.00027397,2]
[424866500,1781215846000,-154.29,0.00025,2]
[424866540,1781215846000,-150.0,0.00027397,2]
[424866529,1781215846000,-1272.17866443,0.00027186,2]
[424866538,1781215846000,-155.89282045,0.00027359,7]
[424866527,1781215846000,-150.0,0.00026641,2]
[424866501,1781215846000,-152.0,0.0002503,7]
[424866526,1781215846000,-502.0,0.00026525,9]
[424866503,1781215846000,-2253.0,0.00025187,2]
[424866505,1781215846000,-2235.0,0.00025187,2]
[424866506,1781215846000,-1272.17866443,0.00025257,2]
[424866507,1781215846000,-150.0,0.00025373,2]
[424866511,1781215846000,-200.0,0.00025472,2]
[424866508,1781215846000,-2884.75459676,0.00025457,2]
[424866509,1781215846000,-2216.0,0.00025472,2]
[424866514,1781215846000,-151.0,0.00025472,2]
[424866510,1781215846000,-2219.0,0.00025472,2]
[424866519,1781215846000,-227.7,0.00026116,7]
[424866520,1781215846000,-373.7,0.00026296,2]
[424866517,1781215846000,-356.2,0.000259,7]
[424866512,1781215846000,-200.0,0.00025472,2]
[424866515,1781215846000,-200.0,0.00025727,2]
[424866518,1781215846000,-2991.49051684,0.00026005,2]
[424866516,1781215846000,-502.0,0.0002575,9]
[424866521,1781215846000,-612.279922,0.00026384,2]
[424866524,1781215846000,-612.279922,0.00026384,2]
[424866522,1781215846000,-612.279922,0.00026384,2]
[424866581,1781215847000,-152.21,0.00027791,7]
[424866579,1781215847000,-157.14,0.00027778,7]
[424866582,1781215847000,-157.14,0.0002781,30]
[424866583,1781215847000,-152.21,0.00027825,30]
[424866584,1781215847000,-157.14,0.00027842,2]
[424866586,1781215847000,-219.85,0.00027872,2]
[424866588,1781215847000,-273.22,0.00027872,2]
[424866589,1781215847000,-273.28,0.00027872,2]
[424866578,1781215847000,-152.21,0.00027757,2]
[424866580,1781215847000,-1673.0,0.0002779,5]
[424866585,1781215847000,-152.21,0.00027858,2]
[424866591,1781215847000,-152.21,0.00027892,7]
[424866602,1781215847000,-219.85,0.00028033,30]
[424866599,1781215847000,-160.0,0.00028,7]
[424866596,1781215847000,-157.14,0.0002797,7]
[424866598,1781215847000,-152.21,0.00027994,7]
[424866593,1781215847000,-152.21,0.00027926,30]
[424866595,1781215847000,-152.21,0.0002796,2]
[424866590,1781215847000,-157.14,0.00027874,7]
[424866594,1781215847000,-157.14,0.00027938,2]
[424866600,1781215847000,-157.14,0.00028002,30]
[424866612,1781215847000,-152.91177246,0.00028101,30]
[424866601,1781215847000,-152.21,0.00028028,30]
[424866587,1781215847000,-412.56,0.00027872,2]
[424866592,1781215847000,-157.14,0.00027906,30]
[424866577,1781215847000,-157.14,0.00027746,2]
[424866550,1781215847000,-206.261421,0.00027397,2]
[424866572,1781215847000,-412.56,0.00027711,7]
[424866553,1781215847000,-7202.5,0.00027397,10]
[424866554,1781215847000,-500.0,0.000275,7]
[424866552,1781215847000,-4613.04,0.00027397,10]
[424866549,1781215847000,-206.261421,0.00027397,2]
[424866551,1781215847000,-206.261421,0.00027397,2]
[424866604,1781215847000,-273.22,0.00028033,30]
[424866556,1781215847000,-219.85,0.0002755,30]
[424866559,1781215847000,-273.28,0.0002755,30]
[424866566,1781215847000,-152.21,0.00027621,30]
[424866555,1781215847000,-356.2,0.000275,7]
[424866558,1781215847000,-273.22,0.0002755,30]
[424866557,1781215847000,-412.56,0.0002755,30]
[424866576,1781215847000,-152.21,0.00027723,30]
[424866564,1781215847000,-152.21,0.00027587,7]
[424866565,1781215847000,-157.14,0.00027618,30]
[424866560,1781215847000,-152.21,0.00027554,2]
[424866562,1781215847000,-233.0,0.00027581,2]
[424866563,1781215847000,-157.14,0.00027586,7]
[424866567,1781215847000,-157.14,0.0002765,2]
[424866573,1781215847000,-273.22,0.00027711,7]
[424866570,1781215847000,-152.21,0.00027689,7]
[424866571,1781215847000,-219.85,0.00027711,7]
[424866569,1781215847000,-157.14,0.00027682,7]
[424866574,1781215847000,-273.28,0.00027711,7]
[424866568,1781215847000,-152.21,0.00027655,2]
[424866575,1781215847000,-157.14,0.00027714,30]
[424866561,1781215847000,-157.14,0.00027554,2]
[424866607,1781215847000,-152.21,0.00028062,2]
[424866597,1781215847000,-150.0,0.00027973,2]
[424866609,1781215847000,-502.0,0.00028075,11]
[424866641,1781215847000,-1148.61238259,0.00028691,2]
[424866638,1781215847000,-1068.11,0.00028691,2]
[424866639,1781215847000,-578.20924308,0.00028691,2]
[424866637,1781215847000,-1030.0,0.00028691,2]
[424866647,1781215847000,-1328.27659266,0.00028691,2]
[424866642,1781215847000,-856.63039051,0.00028691,2]
[424866643,1781215847000,-1191.11104074,0.00028691,2]
[424866646,1781215847000,-1280.88388877,0.00028691,2]
[424866644,1781215847000,-174.61919141,0.00028691,2]
[424866645,1781215847000,-1235.18214925,0.00028691,2]
[424866649,1781215847000,-151.0,0.00028691,2]
[424866659,1781215847000,-500.0,0.00028691,2]
[424866650,1781215847000,-500.0,0.00028691,2]
[424866651,1781215847000,-1428.38747117,0.00028691,2]
[424866652,1781215847000,-151.0,0.00028691,2]
[424866655,1781215847000,-1481.2378076,0.00028691,2]
[424866657,1781215847000,-500.0,0.00028691,2]
[424866656,1781215847000,-1536.04360648,0.00028691,2]
[424866653,1781215847000,-500.0,0.00028691,2]
[424866658,1781215847000,-1592.87721992,0.00028691,2]
[424866654,1781215847000,-151.0,0.00028691,2]
[424866662,1781215847000,-500.0,0.00028691,2]
[424866660,1781215847000,-1651.81367706,0.00028691,2]
[424866661,1781215847000,-152.0,0.00028691,2]
[424866610,1781215847000,-152.21,0.00028096,7]
[424866640,1781215847000,-1107.63007,0.00028691,2]
[424866636,1781215847000,-610.43406966,0.00028691,2]
[424866648,1781215847000,-1377.42282658,0.00028691,2]
[424866632,1781215847000,-311.7856409,0.00028652,7]
[424866608,1781215847000,-157.14,0.00028066,7]
[424866633,1781215847000,-304.46446868,0.00028652,7]
[424866611,1781215847000,-157.14,0.00028098,30]
[424866603,1781215847000,-412.56,0.00028033,30]
[424866606,1781215847000,-157.14,0.00028034,2]
[424866605,1781215847000,-273.28,0.00028033,30]
[424866613,1781215847000,-152.35,0.0002813,30]
[424866615,1781215847000,-219.85,0.00028194,7]
[424866614,1781215847000,-157.19,0.0002813,2]
[424866616,1781215847000,-412.56,0.00028194,7]
[424866618,1781215847000,-273.28,0.00028194,7]
[424866617,1781215847000,-273.22,0.00028194,7]
[424866619,1781215847000,-373.7,0.00028267,2]
[424866620,1781215847000,-219.85,0.00028355,2]
[424866631,1781215847000,-338.73627442,0.00028652,7]
[424866635,1781215847000,-412.56,0.00028677,7]
[424866621,1781215847000,-412.56,0.00028355,2]
[424866630,1781215847000,-309.9322939,0.00028652,7]
[424866634,1781215847000,-219.85,0.00028677,7]
[424866628,1781215847000,-422.69322028,0.00028652,7]
[424866627,1781215847000,-337.44665487,0.00028652,7]
[424866629,1781215847000,-407.36403944,0.00028652,7]
[424866625,1781215847000,-227.7,0.00028596,7]
[424866623,1781215847000,-219.85,0.00028516,30]
[424866624,1781215847000,-412.56,0.00028516,30]
[424866622,1781215847000,-10703.05719178,0.00028384,2]
[424866626,1781215847000,-556.61,0.00028596,30]
[424866697,1781215848000,-167.46807175,0.00028971,2]
[424866702,1781215848000,-434.20064185,0.00029,2]
[424866699,1781215848000,-1066.92674947,0.00029,2]
[424866700,1781215848000,-412.65,0.00029,30]
[424866696,1781215848000,-151.0,0.00028966,2]
[424866690,1781215848000,-219.85,0.00028838,2]
[424866705,1781215848000,-1272.17866443,0.00029114,2]
[424866694,1781215848000,-480.0,0.000289,2]
[424866706,1781215848000,-151.0,0.00029131,2]
[424866695,1781215848000,-151.0,0.00028911,2]
[424866703,1781215848000,-151.0,0.00029021,2]
[424866701,1781215848000,-215.95576085,0.00029,7]
[424866704,1781215848000,-151.0,0.00029076,2]
[424866715,1781215848000,-151.0,0.00029154,30]
[424866708,1781215848000,-552.0,0.00029149,30]
[424866709,1781215848000,-154.0,0.00029149,30]
[424866711,1781215848000,-254.0,0.00029149,30]
[424866719,1781215848000,-163.0,0.00029154,30]
[424866712,1781215848000,-156.0,0.00029149,30]
[424866710,1781215848000,-162.0,0.00029149,30]
[424866716,1781215848000,-748.0,0.00029154,30]
[424866718,1781215848000,-154.0,0.00029154,30]
[424866717,1781215848000,-155.0,0.00029154,30]
[424866714,1781215848000,-159.0,0.00029149,30]
[424866713,1781215848000,-156.0,0.00029149,30]
[424866692,1781215848000,-502.0,0.0002885,12]
[424866707,1781215848000,-156.0,0.00029148,30]
[424866688,1781215848000,-170264.2566089,0.00028819,2]
[424866663,1781215848000,-1712.93078311,0.00028691,2]
[424866693,1781215848000,-151.0,0.00028856,2]
[424866721,1781215848000,-856.63039051,0.00029239,2]
[424866666,1781215848000,-500.0,0.00028691,2]
[424866664,1781215848000,-152.0,0.00028691,2]
[424866665,1781215848000,-1776.30922209,0.00028691,2]
[424866669,1781215848000,-500.0,0.00028691,2]
[424866668,1781215848000,-1842.0326633,0.00028691,2]
[424866667,1781215848000,-152.0,0.00028691,2]
[424866670,1781215848000,-152.0,0.00028691,2]
[424866674,1781215848000,-500.0,0.00028691,2]
[424866680,1781215848000,-152.0,0.00028691,2]
[424866672,1781215848000,-1910.18787185,0.00028691,2]
[424866671,1781215848000,-500.0,0.00028691,2]
[424866687,1781215848000,-151.0,0.00028801,2]
[424866673,1781215848000,-152.0,0.00028691,2]
[424866676,1781215848000,-152.0,0.00028691,2]
[424866679,1781215848000,-500.0,0.00028691,2]
[424866677,1781215848000,-2054.15682156,0.00028691,2]
[424866681,1781215848000,-500.0,0.00028691,2]
[424866678,1781215848000,-152.0,0.00028691,2]
[424866683,1781215848000,-152.0,0.00028691,2]
[424866682,1781215848000,-152.0,0.00028691,2]
[424866684,1781215848000,-152.0,0.00028691,2]
[424866691,1781215848000,-412.56,0.00028838,2]
[424866685,1781215848000,-356.2,0.000287,7]
[424866686,1781215848000,-151.0,0.00028746,2]
[424866689,1781215848000,-143430.7482285,0.00028819,2]
[424866675,1781215848000,-1980.8648231,0.00028691,2]
[424866720,1781215848000,-151.0,0.00029186,2]
[424866698,1781215848000,-219.91,0.00029,30]
[424866730,1781215848000,-382.0,0.00029467,2]
[424866755,1781215848000,-151.82,0.00029828,7]
[424866754,1781215848000,-356.2,0.000298,7]
[424866756,1781215848000,-403.53,0.00029828,30]
[424866758,1781215848000,-152.91177246,0.0002994,30]
[424866757,1781215848000,-12846.51081558,0.000299,2]
[424866761,1781215848000,-476.53247455,0.00029999,2]
[424866759,1781215848000,-1000.0,0.00029982,7]
[424866760,1781215848000,-540.09432815,0.00029982,7]
[424866762,1781215848000,-266.38137717,0.00029999,2]
[424866753,1781215848000,-165.55515187,0.00029787,2]
[424866764,1781215848000,-326.74597807,0.00029999,2]
[424866776,1781215848000,-500.0,0.00029999,2]
[424866752,1781215848000,-187.78006524,0.00029787,2]
[424866766,1781215848000,-332.25564856,0.00029999,2]
[424866767,1781215848000,-500.0,0.00029999,2]
[424866777,1781215848000,-500.0,0.00029999,2]
[424866768,1781215848000,-500.0,0.00029999,2]
[424866770,1781215848000,-322.62175646,0.00029999,2]
[424866769,1781215848000,-500.0,0.00029999,2]
[424866771,1781215848000,-500.0,0.00029999,2]
[424866773,1781215848000,-500.0,0.00029999,2]
[424866774,1781215848000,-500.0,0.00029999,2]
[424866772,1781215848000,-357.63429128,0.00029999,2]
[424866775,1781215848000,-500.0,0.00029999,2]
[424866779,1781215848000,-500.0,0.00029999,2]
[424866780,1781215848000,-500.0,0.00029999,2]
[424866765,1781215848000,-500.0,0.00029999,2]
[424866749,1781215848000,-939.0,0.00029656,10]
[424866763,1781215848000,-500.0,0.00029999,2]
[424866748,1781215848000,-502.0,0.00029625,12]
[424866728,1781215848000,-1358.0,0.00029444,2]
[424866726,1781215848000,-150.0,0.00029372,2]
[424866747,1781215848000,-456.69670302,0.00029514,7]
[424866723,1781215848000,-151.0,0.00029239,2]
[424866724,1781215848000,-151.0,0.00029241,2]
[424866727,1781215848000,-3558.941,0.00029444,2]
[424866729,1781215848000,-1274.0,0.00029444,2]
[424866731,1781215848000,-1227.0,0.00029467,2]
[424866733,1781215848000,-6076.0,0.00029467,2]
[424866734,1781215848000,-195.06914112,0.00029514,7]
[424866732,1781215848000,-419.0,0.00029467,2]
[424866740,1781215848000,-163.09849597,0.00029514,7]
[424866736,1781215848000,-86.11842774,0.00029514,7]
[424866725,1781215848000,-291.0,0.00029305,2]
[424866735,1781215848000,-191.60961322,0.00029514,2]
[424866737,1781215848000,-420.05155457,0.00029514,7]
[424866743,1781215848000,-259.45926073,0.00029514,7]
[424866746,1781215848000,-467.67846134,0.00029514,7]
[424866745,1781215848000,-508.10441163,0.00029514,7]
[424866742,1781215848000,-611.04605916,0.00029514,7]
[424866751,1781215848000,-856.63039051,0.00029787,2]
[424866722,1781215848000,-181.08010149,0.00029239,2]
[424866778,1781215848000,-500.0,0.00029999,2]
[424866744,1781215848000,-464.89844085,0.00029514,7]
[424866741,1781215848000,-203.62094806,0.00029514,7]
[424866739,1781215848000,-634.03983042,0.00029514,7]
[424866738,1781215848000,-241.89229668,0.00029514,7]
[424866750,1781215848000,-206.40590301,0.00029708,2]
[424866788,1781215849000,-500.0,0.00029999,2]
[424866781,1781215849000,-500.0,0.00029999,2]
[424866785,1781215849000,-500.0,0.00029999,2]
[424866782,1781215849000,-500.0,0.00029999,2]
[424866783,1781215849000,-500.0,0.00029999,2]
[424866784,1781215849000,-500.0,0.00029999,2]
[424866786,1781215849000,-500.0,0.00029999,2]
[424866787,1781215849000,-500.0,0.00029999,2]
[424866789,1781215849000,-500.0,0.00029999,2]
[424866790,1781215849000,-500.0,0.00029999,2]
[424866792,1781215849000,-500.0,0.00029999,2]
[424866793,1781215849000,-500.0,0.00029999,2]
[424866795,1781215849000,-259.36097678,0.00029999,2]
[424866796,1781215849000,-500.0,0.00029999,2]
[424866797,1781215849000,-500.0,0.00029999,2]
[424866798,1781215849000,-154.75441899,0.00029999,2]
[424866791,1781215849000,-500.0,0.00029999,2]
[424866794,1781215849000,-500.0,0.00029999,2]
[424866799,1781215913000,-10683.17827023,0.0001377,2]
[424866800,1781215932000,-10683.17827023,0.0001377,2]
[424866801,1781215951000,-402.3220204,0.0001377,2]
[424866802,1781215970000,-402.3220204,0.0001377,2]
[424866803,1781215988000,-477.6779796,0.0001377,2]
[424866804,1781216006000,-477.6779796,0.0001377,2]
[424866821,1781216355000,-199.71852947,0.00013528,2]
[424866820,1781216355000,-213.9,0.00013528,2]
[424866827,1781216478000,128.06852947,0.00013295,2]
[424866828,1781216478000,85.83147053,0.00013295,2]
[424866826,1781216478000,21.93147053,0.00013295,2]
[424866882,1781217033000,-500.0,0.00013598,2]
[424866870,1781217033000,-333.57273219,0.00013598,2]
[424866874,1781217033000,-500.0,0.00013598,2]
[424866873,1781217033000,-432.57895399,0.00013598,2]
[424866877,1781217033000,-500.0,0.00013598,2]
[424866875,1781217033000,-500.0,0.00013598,2]
[424866876,1781217033000,-500.0,0.00013598,2]
[424866889,1781217033000,-500.0,0.00013598,2]
[424866890,1781217033000,-500.0,0.00013598,2]
[424866880,1781217033000,-500.0,0.00013598,2]
[424866878,1781217033000,-500.0,0.00013598,2]
[424866881,1781217033000,-500.0,0.00013598,2]
[424866883,1781217033000,-500.0,0.00013598,2]
[424866884,1781217033000,-500.0,0.00013598,2]
[424866871,1781217033000,-228.72218465,0.00013598,2]
[424866879,1781217033000,-500.0,0.00013598,2]
[424866867,1781217033000,-2000.0,0.00013598,2]
[424866872,1781217033000,-186.46696402,0.00013598,2]
[424866850,1781217033000,-461.39443809,0.00013171,2]
[424866861,1781217033000,-725.8,0.00013297,2]
[424866863,1781217033000,-1421.00119225,0.0001357,2]
[424866864,1781217033000,-182.30537748,0.0001357,2]
[424866849,1781217033000,-318.05,0.00012886,2]
[424866851,1781217033000,-109.61556191,0.00013171,2]
[424866885,1781217033000,-500.0,0.00013598,2]
[424866857,1781217033000,-114.16852947,0.00013295,2]
[424866855,1781217033000,-7284.75556191,0.00013292,2]
[424866859,1781217033000,-300.0,0.00013296,2]
[424866865,1781217033000,-150.0,0.00013597,2]
[424866852,1781217033000,-150.0,0.00013248,2]
[424866866,1781217033000,-500.0,0.00013598,2]
[424866868,1781217033000,-250.0,0.00013598,2]
[424866853,1781217033000,-1211.63443809,0.00013292,2]
[424866869,1781217033000,-500.0,0.00013598,2]
[424866887,1781217033000,-500.0,0.00013598,2]
[424866888,1781217033000,-500.0,0.00013598,2]
[424866910,1781217033000,-500.0,0.00013598,2]
[424866907,1781217033000,-500.0,0.00013598,2]
[424866909,1781217033000,-500.0,0.00013598,2]
[424866908,1781217033000,-500.0,0.00013598,2]
[424866915,1781217033000,-500.0,0.00013598,2]
[424866914,1781217033000,-500.0,0.00013598,2]
[424866886,1781217033000,-500.0,0.00013598,2]
[424866916,1781217033000,-500.0,0.00013598,2]
[424866918,1781217033000,-500.0,0.00013598,2]
[424866920,1781217033000,-356.78203726,0.00013598,2]
[424866919,1781217033000,-500.0,0.00013598,2]
[424866921,1781217033000,-45105.92221227,0.00013599,2]
[424866922,1781217033000,-3568.32269673,0.00013599,2]
[424866923,1781217033000,-3667.98258065,0.00013599,2]
[424866917,1781217033000,-500.0,0.00013598,2]
[424866902,1781217033000,-500.0,0.00013598,2]
[424866906,1781217033000,-500.0,0.00013598,2]
[424866904,1781217033000,-500.0,0.00013598,2]
[424866893,1781217033000,-500.0,0.00013598,2]
[424866892,1781217033000,-500.0,0.00013598,2]
[424866891,1781217033000,-500.0,0.00013598,2]
[424866894,1781217033000,-500.0,0.00013598,2]
[424866900,1781217033000,-500.0,0.00013598,2]
[424866905,1781217033000,-500.0,0.00013598,2]
[424866896,1781217033000,-500.0,0.00013598,2]
[424866899,1781217033000,-500.0,0.00013598,2]
[424866898,1781217033000,-500.0,0.00013598,2]
[424866901,1781217033000,-500.0,0.00013598,2]
[424866897,1781217033000,-500.0,0.00013598,2]
[424866903,1781217033000,-500.0,0.00013598,2]
[424866912,1781217033000,-500.0,0.00013598,2]
[424866913,1781217033000,-500.0,0.00013598,2]
[424866911,1781217033000,-500.0,0.00013598,2]
[424866895,1781217033000,-500.0,0.00013598,2]
[424866927,1781217038000,-1318.75819923,0.00013599,2]
[424866924,1781217038000,-10996.28048591,0.00013599,2]
[424866926,1781217038000,-3998.71600123,0.00013599,2]
[424866925,1781217038000,-30517.37744416,0.00013599,2]
[424866929,1781217038000,-157.78804146,0.00013622,2]
[424866934,1781217038000,-1179733.74272802,0.00013669,2]
[424866930,1781217038000,-416.40513787,0.00013622,2]
[424866931,1781217038000,-734.58802128,0.00013622,2]
[424866933,1781217038000,-166.66,0.00013648,2]
[424866935,1781217038000,-4134.16891772,0.00013669,2]
[424866932,1781217038000,-1098.89974701,0.00013622,2]
[424866928,1781217038000,-2400826.64037982,0.00013599,2]
[424867176,1781217040000,-453.0,0.0001367,2]
[424867177,1781217040000,-445.0,0.0001367,2]
[424867178,1781217040000,-449.0,0.0001367,2]
[424867180,1781217040000,-960.22612451,0.00013685,2]
[424867179,1781217040000,-715.18888,0.0001367,2]
[424867188,1781217040000,-607.3,0.00013724,2]
[424867181,1781217040000,-192.16954241,0.00013685,2]
[424867182,1781217040000,-1307.32542553,0.00013685,2]
[424867185,1781217040000,-22261.86,0.00013699,2]
[424867187,1781217040000,-304.526,0.00013699,2]
[424867172,1781217040000,-444.0,0.0001367,2]
[424867183,1781217040000,-1590.28,0.00013699,2]
[424867186,1781217040000,-4603.123,0.00013699,2]
[424867189,1781217040000,-166.66,0.00013752,2]
[424867191,1781217040000,-500.0,0.00013769,2]
[424867196,1781217040000,-500.0,0.00013769,2]
[424867190,1781217040000,-500.0,0.00013769,2]
[424867192,1781217040000,-500.0,0.00013769,2]
[424867184,1781217040000,-200.0,0.00013699,2]
[424867173,1781217040000,-444.0,0.0001367,2]
[424867171,1781217040000,-444.0,0.0001367,2]
[424867169,1781217040000,-452.0,0.0001367,2]
[424867137,1781217040000,-3185.8786834,0.00013669,2]
[424867127,1781217040000,-61137.61032218,0.00013669,2]
[424867130,1781217040000,-315.87755839,0.00013669,2]
[424867132,1781217040000,-774.6985844,0.00013669,2]
[424867145,1781217040000,-250718.02320589,0.00013669,2]
[424867147,1781217040000,-443.0,0.0001367,2]
[424867149,1781217040000,-446.0,0.0001367,2]
[424867151,1781217040000,-458.0,0.0001367,2]
[424867153,1781217040000,-458.0,0.0001367,2]
[424867155,1781217040000,-444.0,0.0001367,2]
[424867157,1781217040000,-457.0,0.0001367,2]
[424867162,1781217040000,-449.0,0.0001367,2]
[424867159,1781217040000,-454.0,0.0001367,2]
[424867164,1781217040000,-443.0,0.0001367,2]
[424867166,1781217040000,-453.0,0.0001367,2]
[424867167,1781217040000,-457.0,0.0001367,2]
[424867168,1781217040000,-455.0,0.0001367,2]
[424867175,1781217040000,-450.0,0.0001367,2]
[424867194,1781217040000,-500.0,0.00013769,2]
[424867174,1781217040000,-456.0,0.0001367,2]
[424867193,1781217040000,-500.0,0.00013769,2]
[424867170,1781217040000,-446.0,0.0001367,2]
[424867195,1781217040000,-500.0,0.00013769,2]
[424867217,1781217040000,-250.0,0.00014,2]
[424867223,1781217040000,-2500.0,0.00014488,2]
[424867224,1781217040000,-2500.0,0.00014488,2]
[424867225,1781217040000,-2500.0,0.00014488,2]
[424867221,1781217040000,-166.66,0.00014331,2]
[424867227,1781217040000,-600.0,0.00014488,2]
[424867235,1781217040000,-200.0,0.00014488,2]
[424867236,1781217040000,-200.80905334,0.00014488,2]
[424867228,1781217040000,-600.0,0.00014488,2]
[424867229,1781217040000,-600.0,0.00014488,2]
[424867226,1781217040000,-2500.0,0.00014488,2]
[424867234,1781217040000,-200.0,0.00014488,2]
[424867230,1781217040000,-600.0,0.00014488,2]
[424867231,1781217040000,-600.0,0.00014488,2]
[424867233,1781217040000,-200.0,0.00014488,2]
[424867237,1781217040000,-318.05,0.00014497,2]
[424867239,1781217040000,-420.0,0.00014577,2]
[424867238,1781217040000,-329.28,0.00014509,2]
[424867198,1781217040000,-500.0,0.00013769,2]
[424867218,1781217040000,-166.66,0.00014041,2]
[424867222,1781217040000,-2500.0,0.00014488,2]
[424867232,1781217040000,-200.0,0.00014488,2]
[424867214,1781217040000,-215.95576085,0.00013791,2]
[424867199,1781217040000,-500.0,0.00013769,2]
[424867216,1781217040000,-500.0,0.00013872,2]
[424867197,1781217040000,-500.0,0.00013769,2]
[424867210,1781217040000,-500.0,0.00013769,2]
[424867209,1781217040000,-500.0,0.00013769,2]
[424867211,1781217040000,-500.0,0.00013769,2]
[424867212,1781217040000,-500.0,0.00013769,2]
[424867201,1781217040000,-500.0,0.00013769,2]
[424867203,1781217040000,-500.0,0.00013769,2]
[424867208,1781217040000,-500.0,0.00013769,2]
[424867202,1781217040000,-500.0,0.00013769,2]
[424867206,1781217040000,-500.0,0.00013769,2]
[424867207,1781217040000,-500.0,0.00013769,2]
[424867205,1781217040000,-500.0,0.00013769,2]
[424867204,1781217040000,-500.0,0.00013769,2]
[424867213,1781217040000,-160.0,0.0001379,2]
[424867220,1781217040000,-300.10790081,0.00014174,2]
[424867200,1781217040000,-500.0,0.00013769,2]
[424867215,1781217040000,-158.31,0.000138,2]
[424867219,1781217040000,-250.0,0.00014174,2]
[424867271,1781217041000,-960.22612449,0.00017441,2]
[424867272,1781217041000,-1307.32542544,0.00017441,2]
[424867270,1781217041000,-503.39,0.0001737,2]
[424867277,1781217041000,-318.05,0.00017718,2]
[424867269,1781217041000,-1613.0535,0.00017311,2]
[424867276,1781217041000,-500.0,0.00017652,2]
[424867278,1781217041000,-1672.7364795,0.00017859,2]
[424867275,1781217041000,-500.0,0.00017652,2]
[424867281,1781217041000,-2008.02,0.00018309,2]
[424867274,1781217041000,-734.33371046,0.00017563,2]
[424867279,1781217041000,-2008.02,0.00017893,2]
[424867280,1781217041000,-502.0,0.00018,2]
[424867291,1781217041000,-318.05,0.00019329,2]
[424867286,1781217041000,-1798.80895522,0.00018955,2]
[424867283,1781217041000,-425.6,0.0001841,2]
[424867288,1781217041000,-503.39,0.000193,2]
[424867287,1781217041000,-160.52,0.00018988,2]
[424867289,1781217041000,-960.22612449,0.00019319,2]
[424867290,1781217041000,-1307.32542544,0.00019319,2]
[424867285,1781217041000,-502.0,0.00018954,2]
[424867284,1781217041000,-158.31,0.000187,2]
[424867292,1781217041000,-999.99,0.00019339,2]
[424867301,1781217041000,-151.0,0.0002,2]
[424867298,1781217041000,-154.0,0.0002,2]
[424867273,1781217041000,-2008.02,0.00017477,2]
[424867282,1781217041000,-1734.62772924,0.00018407,2]
[424867266,1781217041000,-1555.5,0.00016763,2]
[424867244,1781217041000,-450.27,0.00015068,2]
[424867268,1781217041000,-192.1695424,0.00017299,2]
[424867241,1781217041000,-152.0,0.00014712,2]
[424867240,1781217041000,-166.66,0.0001462,2]
[424867242,1781217041000,-166.66,0.0001491,2]